bitfinex-derivatives/quotes_SOLF0:USTF0_20250819
["timestamp","ask_amount","ask_price","bid_price","bid_amount"]
[1755605885226,3.61297969,182.25,182.15,2.99]
[1755605885425,4.23825353,182.24,182.15,2.99]
[1755605885734,3.61297969,182.25,182.15,2.99]
[1755605885924,4.23825876,182.24,182.15,2.99]
[1755605886126,3.61297969,182.25,182.15,2.99]
[1755605886424,4.23845765,182.24,182.15,2.99]
[1755605886619,3.61297969,182.25,182.15,2.99]
[1755605886815,4.23845765,182.24,182.15,2.99]
[1755605887019,4.23843673,182.23,182.13,2.99]
[1755605887223,3.61297969,182.25,182.13,2.99]
[1755605887423,4.23969738,182.24,182.13,2.99]
[1755605887628,4.23969738,182.23,182.13,2.99]
[1755605887921,3.61297969,182.25,182.13,5.4887]
[1755605888126,4.23929716,182.24,182.14,2.99]
[1755605888328,3.61297969,182.25,182.14,2.99]
[1755605888628,4.23930237,182.24,182.14,2.99]
[1755605888826,3.61297969,182.25,182.14,2.99]
[1755605889053,4.23894065,182.24,182.14,2.99]
[1755605889215,3.61297969,182.25,182.14,2.99]
[1755605889519,4.23933246,182.24,182.14,2.99]
[1755605889719,3.61297969,182.25,182.14,2.99]
[1755605889915,4.23934299,182.24,182.14,2.99]
[1755605890120,3.61297969,182.25,182.15,2.99]
[1755605890320,4.24051574,182.24,182.15,2.99]
[1755605890524,133.96,182.26,182.15,2.99]
[1755605890725,4.2398654,182.25,182.17,2.99]
[1755605891026,133.96,182.26,182.17,2.99]
[1755605894824,133.96,182.26,182.13,2.99]
[1755605895022,4.23854084,182.25,182.13,2.99]
[1755605895327,133.96,182.26,182.13,2.99]
[1755605895528,4.23969529,182.25,182.13,2.99]
[1755605895832,133.96,182.26,182.13,2.99]
[1755605896032,4.23970053,182.25,182.13,5.4886]
[1755605896243,133.96,182.26,182.14,2.99]
[1755605896433,4.24039004,182.25,182.14,2.99]
[1755605896733,4.24039004,182.24,182.14,2.99]
[1755605896931,133.96,182.26,182.14,2.99]
[1755605897132,4.23930163,182.25,182.14,2.99]
[1755605897332,4.23930163,182.24,182.14,2.99]
[1755605897527,133.96,182.26,182.14,2.99]
[1755605897728,4.23974482,182.25,182.14,2.99]
[1755605897930,133.96,182.26,182.14,2.99]
[1755605898132,4.23956591,182.25,182.14,2.99]
[1755605899337,133.96,182.26,182.14,2.99]
[1755605899537,4.24676744,182.25,182.14,2.99]
[1755605899736,4.24676744,182.24,182.14,2.99]
[1755605899936,133.96,182.26,182.14,2.99]
[1755605900238,4.2466944,182.25,182.14,2.99]
[1755605900439,4.2466944,182.24,182.14,2.99]
[1755605900630,133.96,182.26,182.14,2.99]
[1755605900830,4.24734892,182.25,182.14,2.99]
[1755605901030,4.24734892,182.24,182.14,2.99]
[1755605901339,133.96,182.26,182.14,2.99]
[1755605901633,3.61297969,182.24,182.14,2.99]
[1755605901839,4.24775963,182.23,182.14,2.99]
[1755605902140,3.61297969,182.24,182.14,2.99]
[1755605902334,4.24897789,182.23,182.14,2.99]
[1755605902556,3.61297969,182.24,182.14,2.99]
[1755605902734,4.24898322,182.23,182.14,2.99]
[1755605902937,3.61297969,182.24,182.14,2.99]
[1755605903140,4.24897789,182.23,182.14,2.99]
[1755605903339,3.61297969,182.24,182.14,2.99]
[1755605903638,4.25014338,182.23,182.14,2.99]
[1755605903833,3.61297969,182.24,182.14,2.99]
[1755605904034,4.25014338,182.23,182.14,2.99]
[1755605904331,3.61297969,182.24,182.14,2.99]
[1755605904532,4.2508024,182.23,182.14,2.99]
[1755605904732,3.61297969,182.24,182.14,2.99]
[1755605904932,4.2508024,182.23,182.14,2.99]
[1755605905134,3.61297969,182.24,182.14,2.99]
[1755605905335,4.25160403,182.23,182.14,2.99]
[1755605905534,3.61297969,182.24,182.14,2.99]
[1755605905732,4.25160403,182.23,182.14,2.99]
[1755605905938,3.61297969,182.24,182.14,2.99]
[1755605906244,4.25185764,182.23,182.14,2.99]
[1755605906443,3.61297969,182.24,182.14,2.99]
[1755605906634,4.25377843,182.23,182.14,2.99]
[1755605906838,3.61297969,182.24,182.14,2.99]
[1755605908638,4.25541459,182.23,182.14,2.99]
[1755605908939,3.61297969,182.24,182.14,2.99]
[1755605909243,4.25541459,182.23,182.14,2.99]
[1755605909443,3.61297969,182.24,182.14,2.99]
[1755605909643,4.25640627,182.23,182.14,2.99]
[1755605909844,3.61297969,182.24,182.14,2.99]
[1755605910146,4.25640627,182.23,182.14,2.99]
[1755605910342,3.61297969,182.24,182.14,2.99]
[1755605910551,4.25753876,182.23,182.14,2.99]
[1755605910741,3.61297969,182.24,182.14,2.99]
[1755605910939,4.25753876,182.23,182.14,2.99]
[1755605911140,3.61297969,182.24,182.14,2.99]
[1755605911445,3.61297969,182.24,182.15,2.86]
[1755605913249,4.25991721,182.23,182.15,2.86]
[1755605913447,3.61297969,182.24,182.15,2.86]
[1755605913640,4.25991721,182.23,182.15,2.86]
[1755605913944,3.61297969,182.24,182.15,2.86]
[1755605914139,4.25991721,182.23,182.15,2.86]
[1755605914346,3.61297969,182.24,182.15,2.86]
[1755605914545,4.26099419,182.23,182.15,2.86]
[1755605914751,3.61297969,182.24,182.15,2.86]
[1755605915045,4.26099419,182.23,182.15,2.86]
[1755605915246,3.61297969,182.24,182.15,2.86]
[1755605915439,4.26219899,182.23,182.15,2.86]
[1755605915751,3.61297969,182.24,182.15,2.86]
[1755605915950,4.26219899,182.23,182.15,2.86]
[1755605916145,3.61297969,182.24,182.15,2.86]
[1755605916445,4.26230571,182.23,182.15,5.4881]
[1755605916744,137.49297969,182.27,182.16,2.86]
[1755605916941,6.97049258,182.26,182.16,8.3477]
[1755605917142,4.26390696,182.25,182.17,2.86]
[1755605917450,4.26390696,182.24,182.17,2.86]
[1755605917743,137.49297969,182.27,182.17,2.86]
[1755605917946,6.9735943,182.26,182.17,2.86]
[1755605918147,6.9735943,182.25,182.17,2.86]
[1755605918346,4.26580428,182.24,182.17,2.86]
[1755605918549,137.49297969,182.27,182.17,2.86]
[1755605918738,6.97901202,182.26,182.17,2.86]
[1755605918942,6.97901202,182.25,182.17,2.86]
[1755605919143,4.26911834,182.24,182.17,2.86]
[1755605919450,4.26911834,182.23,182.17,2.86]
[1755605919749,137.49297969,182.27,182.17,2.86]
[1755605919950,6.98225739,182.26,182.17,2.86]
[1755605920250,6.98225739,182.25,182.17,2.86]
[1755605920448,6.98225739,182.24,182.17,2.86]
[1755605920641,4.27110356,182.23,182.17,2.86]
[1755605920842,137.49297969,182.27,182.17,2.86]
[1755605921042,6.98647801,182.26,182.17,2.86]
[1755605921242,6.98647801,182.25,182.17,2.86]
[1755605921443,6.98647801,182.24,182.17,2.86]
[1755605921646,4.27368546,182.23,182.17,2.86]
[1755605921945,4.27368546,182.22,182.15,9.10097969]
[1755605922150,137.49297969,182.27,182.19,2.86]
[1755605922454,7.02837031,182.26,182.19,2.86]
[1755605922643,7.02837031,182.25,182.19,2.86]
[1755605922842,7.02837031,182.24,182.19,2.86]
[1755605923040,4.31377768,182.23,182.19,2.86]
[1755605923347,4.31377768,182.22,182.19,2.86]
[1755605923551,137.49297969,182.27,182.13,2.86]
[1755605923552,7.92652437,182.21,182.13,2.86]
[1755605923753,4.31354468,182.2,182.13,2.86]
[1755605924049,4.31354468,182.19,182.13,2.86]
[1755605924243,4.31354468,182.18,182.13,2.86]
[1755605924442,2.31405319,182.2,182.14,2.86]
[1755605924640,2.31405319,182.16,182.11,2.86]
[1755605924943,2.31405319,182.14,182.08,2.86]
[1755605925145,4.3864497,182.13,182.07,108.45199278]
[1755605925450,2.31405319,182.14,182.09,2.86]
[1755605925649,4.38307073,182.13,182.09,2.86]
[1755605925849,2.31405319,182.14,182.09,2.86]
[1755605926048,2.31405319,182.12,182.08,2.86]
[1755605926452,3.61885581,182.15,182.08,2.86]
[1755605926845,4.38058519,182.14,182.08,2.86]
[1755605927148,4.38058519,182.13,182.08,2.86]
[1755605927354,3.61885581,182.15,182.08,2.86]
[1755605927558,4.38072397,182.14,182.08,2.86]
[1755605927755,3.61885581,182.15,182.08,2.86]
[1755605927945,4.37921062,182.14,182.08,2.86]
[1755605928141,3.61885581,182.15,182.08,2.86]
[1755605928365,3.61885581,182.12,182.04,2.86]
[1755605928653,4.37678308,182.11,182.04,2.86]
[1755605928851,3.61885581,182.12,182.04,2.86]
[1755605929051,4.37676644,182.11,182.04,2.86]
[1755605929244,3.61885581,182.12,182.04,2.86]
[1755605929550,4.42093936,182.11,182.04,2.86]
[1755605929748,3.61885581,182.12,182.04,2.86]
[1755605929953,4.42073941,182.11,182.04,2.86]
[1755605930156,3.61885581,182.12,182.04,2.86]
[1755605930450,4.41786541,182.11,182.04,2.86]
[1755605930648,3.61885581,182.12,182.04,2.86]
[1755605930850,3.61885581,182.15,182.04,2.86]
[1755605931052,4.41834846,182.14,182.05,5.4911]
[1755605931250,4.41834846,182.13,182.06,2.86]
[1755605931453,4.41834846,182.12,182.06,2.86]
[1755605931751,3.61885581,182.15,182.06,2.86]
[1755605931951,4.41677798,182.14,182.06,2.86]
[1755605932253,4.41677798,182.13,182.06,2.86]
[1755605932571,3.61885581,182.15,182.06,2.86]
[1755605932856,4.41539786,182.14,182.06,2.86]
[1755605933156,3.61885581,182.15,182.06,2.86]
[1755605933358,4.41424546,182.14,182.06,2.86]
[1755605933655,3.61885581,182.15,182.06,2.86]
[1755605933858,4.41424546,182.14,182.06,2.86]
[1755605934058,3.61885581,182.15,182.06,2.86]
[1755605935762,4.4109528,182.14,182.06,2.86]
[1755605935957,4.4109528,182.13,182.06,2.86]
[1755605936156,3.61885581,182.15,182.06,2.86]
[1755605936654,4.40977554,182.14,182.06,2.86]
[1755605936852,4.40977554,182.13,182.02,3.04]
[1755605937153,3.61885581,182.15,182.02,3.04]
[1755605937354,4.40888962,182.14,182.02,3.04]
[1755605937660,3.61885581,182.15,182.02,3.04]
[1755605937958,4.40851295,182.14,182.02,3.04]
[1755605938156,3.61885581,182.15,182.02,3.04]
[1755605938352,4.40778476,182.14,182.02,3.04]
[1755605938558,3.61885581,182.12,182.02,3.04]
[1755605938758,4.40732874,182.11,182.02,3.04]
[1755605938965,3.61885581,182.12,182.02,3.04]
[1755605939156,4.40770545,182.11,182.02,3.04]
[1755605939361,3.61885581,182.12,182.02,3.04]
[1755605941962,3.61885581,182.12,182.03,3.04]
[1755605948570,3.61885581,182.09,181.97,5.4935]
[1755605948767,3.61885581,182.09,181.98,3.04]
[1755605948968,4.40222651,182.08,181.98,3.04]
[1755605949270,3.61885581,182.09,181.98,3.04]
[1755605949461,4.4003299,182.08,181.98,3.04]
[1755605949668,3.61885581,182.09,181.98,3.04]
[1755605951776,4.39759903,182.08,181.98,3.04]
[1755605952083,3.61885581,182.09,181.98,3.04]
[1755605952283,3.61885581,182.06,181.98,3.04]
[1755605952576,3.61885581,182.16,181.91,3.04]
[1755605952577,3.61885581,182.03,181.91,3.04]
[1755605952777,3.61885581,182.03,181.92,5.4951]
[1755605952981,3.61885581,182.03,181.93,3.04]
[1755605953685,3.61885581,182.03,181.93,5.4948]
[1755605953878,3.61885581,182.03,181.94,3.04]
[1755605962790,4.40567482,182.02,181.94,3.04]
[1755605962990,3.61885581,182.03,181.94,3.04]
[1755605963192,4.40586327,182.02,181.94,3.04]
[1755605963381,3.61885581,182.03,181.94,3.04]
[1755605963585,4.40659676,182.02,181.94,3.04]
[1755605963782,3.61885581,182.03,181.94,3.04]
[1755605963980,4.40734092,182.02,181.94,3.04]
[1755605964184,3.61885581,182.0,181.86,117.7640007]
[1755605964389,3.61885581,182.0,181.9,2.91]
[1755605965392,4.40879906,181.99,181.9,2.91]
[1755605965583,3.61885581,182.0,181.9,2.91]
[1755605965889,3.61885581,182.04,181.9,2.91]
[1755605965890,3.61885581,181.97,181.9,2.91]
[1755605966090,3.61885581,182.0,181.9,2.91]
[1755605966286,4.40778752,181.99,181.9,2.91]
[1755605966485,3.61885581,182.0,181.9,2.91]
[1755605966692,4.40999305,181.99,181.9,2.91]
[1755605966889,3.61885581,182.0,181.9,2.91]
[1755605967089,4.40999471,181.99,181.9,2.91]
[1755605967292,3.61885581,182.0,181.9,2.91]
[1755605967494,4.41181101,181.99,181.9,2.91]
[1755605967686,3.61885581,182.0,181.9,2.91]
[1755605967992,4.41181101,181.99,181.9,2.91]
[1755605968192,4.414129,181.98,181.9,2.91]
[1755605968493,3.61885581,182.0,181.9,2.91]
[1755605968801,4.414129,181.99,181.9,2.91]
[1755605968992,4.414129,181.98,181.9,2.91]
[1755605969191,3.61885581,182.0,181.9,2.91]
[1755605969392,4.41548415,181.99,181.9,2.91]
[1755605969592,4.41548415,181.98,181.9,2.91]
[1755605969794,3.61885581,182.0,181.9,2.91]
[1755605969995,4.41548415,181.99,181.9,2.91]
[1755605970185,4.41548415,181.98,181.9,2.91]
[1755605970390,3.61885581,182.0,181.9,2.91]
[1755605970590,4.41597808,181.99,181.9,2.91]
[1755605970796,3.61885581,181.97,181.9,2.91]
[1755605981208,3.61885581,182.0,181.9,2.91]
[1755605981506,4.42129186,181.99,181.9,2.91]
[1755605981706,3.61885581,182.0,181.9,2.91]
[1755605982998,3.61885581,182.01,181.9,2.91]
[1755605983307,3.61885581,182.01,181.91,2.91]
[1755605983508,3.61885581,182.04,181.92,3.61885581]
[1755605983709,4.42636473,182.03,181.93,2.91]
[1755605983902,4.42636473,182.02,181.94,2.91]
[1755605984099,3.61885581,182.04,181.94,2.91]
[1755605984301,4.42782802,182.03,181.94,2.91]
[1755605984511,4.42872281,182.02,181.94,2.91]
[1755605984699,134.02,182.06,181.94,2.91]
[1755605984700,3.61885581,182.01,181.94,2.91]
[1755605985220,3.61885581,182.01,181.89,2.91]
[1755605985813,4.42878807,182.0,181.89,2.91]
[1755605986010,3.61885581,182.01,181.89,2.91]
[1755605986612,4.43051615,182.0,181.89,2.91]
[1755605986813,3.61885581,182.01,181.89,2.91]
[1755605987007,4.43051597,182.0,181.89,2.91]
[1755605987209,3.61885581,182.01,181.9,2.91]
[1755605988216,4.43460703,182.0,181.9,2.91]
[1755605988416,3.61885581,182.01,181.9,2.91]
[1755605988620,4.43485908,182.0,181.9,2.91]
[1755605988819,3.61885581,182.01,181.9,2.91]
[1755605989016,4.43460537,182.0,181.9,2.91]
[1755605989214,134.02,182.06,181.9,2.91]
[1755605989526,3.61885581,182.02,181.9,2.91]
[1755605989821,4.4172028,182.01,181.9,2.91]
[1755605990021,4.4172028,182.0,181.9,2.91]
[1755605990320,3.61885581,182.02,181.9,2.91]
[1755605990516,4.41890777,182.01,181.9,2.91]
[1755605990711,4.41890777,182.0,181.9,2.91]
[1755605990912,3.61885581,182.02,181.9,2.91]
[1755605991119,4.41935236,182.01,181.9,2.91]
[1755605991324,4.41935236,182.0,181.9,2.91]
[1755605991616,3.61885581,182.02,181.9,2.91]
[1755605991818,4.42127313,182.01,181.9,2.91]
[1755605992120,4.42127313,182.0,181.9,2.91]
[1755605992321,4.42594666,181.99,181.9,2.91]
[1755605992514,3.61885581,181.99,181.9,2.91]
[1755605993417,4.42797747,181.98,181.9,2.91]
[1755605993613,4.42798822,181.97,181.9,2.91]
[1755605993817,3.61885581,181.99,181.9,2.91]
[1755605994017,4.42824151,181.98,181.9,2.91]
[1755605994318,4.42824151,181.97,181.9,2.91]
[1755605994517,3.61885581,181.99,181.9,2.91]
[1755605994718,4.42920911,181.98,181.9,2.91]
[1755605994919,4.42920911,181.97,181.9,2.91]
[1755605995116,3.61885581,181.99,181.9,2.91]
[1755605995324,4.43052333,181.98,181.9,2.91]
[1755605995520,4.43052333,181.97,181.9,2.91]
[1755605995821,3.61885581,181.99,181.9,2.91]
[1755605996117,4.4303285,181.98,181.9,2.91]
[1755605996426,4.4303285,181.97,181.9,2.91]
[1755605996610,4.4303285,181.96,181.9,2.91]
[1755605996815,3.61885581,181.99,181.9,2.91]
[1755605997018,4.43288892,181.98,181.9,2.91]
[1755605997219,4.43288892,181.97,181.9,2.91]
[1755605997522,4.43288892,181.96,181.9,2.91]
[1755605997725,3.61885581,181.99,181.9,2.91]
[1755605997922,4.43476034,181.98,181.9,2.91]
[1755605998117,4.43476034,181.97,181.9,2.91]
[1755605998317,4.43476034,181.96,181.9,2.91]
[1755605998717,3.61885581,181.99,181.9,2.91]
[1755605998923,4.43511529,181.98,181.9,2.91]
[1755605999119,4.43511529,181.97,181.9,2.91]
[1755605999318,4.43511529,181.96,181.9,2.91]
[1755605999519,4.52306446,181.95,181.9,2.91]
[1755605999720,3.61885581,181.99,181.91,3.05]
[1755605999918,4.52305282,181.98,181.91,3.05]
[1755606000126,4.52305282,181.97,181.91,3.05]
[1755606000323,4.52305282,181.96,181.91,3.05]
[1755606000523,3.61885581,181.99,181.91,3.05]
[1755606000818,4.52519841,181.98,181.91,3.05]
[1755606001026,4.52519841,181.97,181.91,3.05]
[1755606001225,3.61885581,181.99,181.91,3.05]
[1755606001525,4.52850707,181.98,181.91,3.05]
[1755606001832,4.52850707,181.97,181.91,3.05]
[1755606002121,3.61885581,182.02,181.91,3.05]
[1755606002323,7.25117873,182.01,181.91,3.05]
[1755606002521,7.25117873,182.0,181.91,3.05]
[1755606002724,4.52942165,181.99,181.91,3.05]
[1755606002919,4.52942165,181.98,181.91,3.05]
[1755606003114,4.52942165,181.97,181.91,3.05]
[1755606003417,3.61885581,182.02,181.91,3.05]
[1755606003613,2.72127157,182.01,181.91,3.05]
[1755606003821,7.24988526,182.0,181.91,3.05]
[1755606004019,4.52861369,181.99,181.91,3.05]
[1755606004218,4.52861369,181.98,181.91,3.05]
[1755606004417,4.52861369,181.97,181.91,3.05]
[1755606004618,3.61885581,182.02,181.91,3.05]
[1755606004924,7.24975799,182.01,181.91,3.05]
[1755606005223,7.24975799,182.0,181.91,3.05]
[1755606005424,4.52852801,181.99,181.91,3.05]
[1755606005623,4.52852801,181.98,181.91,3.05]
[1755606005822,4.52852801,181.97,181.91,3.05]
[1755606006028,4.52852801,181.96,181.91,3.05]
[1755606006226,3.61885581,181.99,181.91,3.05]
[1755606006526,4.52834614,181.98,181.91,3.05]
[1755606006726,3.61885581,181.99,181.91,3.05]
[1755606006926,4.52834614,181.98,181.91,3.05]
[1755606007230,4.52834614,181.97,181.91,3.05]
[1755606007531,4.52847956,181.96,181.91,3.05]
[1755606007737,3.61885581,181.99,181.91,3.05]
[1755606008029,4.52847786,181.98,181.91,3.05]
[1755606008230,4.52847786,181.97,181.91,3.05]
[1755606008532,4.52847786,181.96,181.93,3.05]
[1755606008730,3.61885581,181.99,181.93,3.05]
[1755606009028,4.52774918,181.98,181.93,3.05]
[1755606009230,4.52774918,181.97,181.93,3.05]
[1755606009426,4.52774918,181.96,181.93,3.05]
[1755606009621,3.61885581,181.99,181.93,3.05]
[1755606009822,4.52689982,181.98,181.93,3.05]
[1755606010025,3.61885581,181.99,181.93,3.05]
[1755606010026,4.52689982,181.97,181.93,3.05]
[1755606010224,4.52689982,181.96,181.93,3.05]
[1755606010426,3.61885581,181.99,181.93,3.05]
[1755606010628,4.52687625,181.98,181.93,3.05]
[1755606010824,4.52687625,181.97,181.93,3.05]
[1755606011038,4.52687625,181.96,181.94,3.05]
[1755606011223,3.61885581,181.99,181.94,3.05]
[1755606011433,4.52717256,181.98,181.94,3.05]
[1755606011632,4.52717256,181.97,181.94,3.05]
[1755606011933,4.52717256,181.96,181.95,3.05]
[1755606015844,3.61885581,181.99,181.95,3.05]
[1755606016046,4.52354052,181.98,181.95,3.05]
[1755606016339,4.52354052,181.97,181.89,3.05]
[1755606016538,8.14239633,181.96,181.89,3.05]
[1755606016743,4.6575088,181.95,181.89,3.05]
[1755606016946,4.6575088,181.94,181.9,3.05]
[1755606017141,3.61885581,181.96,181.9,3.05]
[1755606017341,4.65746501,181.95,181.9,3.05]
[1755606017542,4.65746501,181.94,181.9,3.05]
[1755606017742,3.61885581,181.96,181.9,3.05]
[1755606018045,4.52259212,181.95,181.9,3.05]
[1755606018245,4.52259212,181.94,181.86,108.64854489]
[1755606018540,4.52259212,181.93,181.87,3.05]
[1755606018735,4.52259212,181.93,181.86,108.64854489]
[1755606018736,4.52259212,181.92,181.86,108.64854489]
[1755606018940,3.61885581,181.96,181.87,3.05]
[1755606019137,7.23899103,181.95,181.87,3.05]
[1755606019444,4.52191444,181.94,181.87,3.05]
[1755606019747,4.52191444,181.93,181.87,3.05]
[1755606020041,4.52191444,181.92,181.88,3.05]
[1755606020246,4.52191444,181.91,181.88,3.05]
[1755606020437,3.61885581,181.96,181.88,3.05]
[1755606020642,7.37657847,181.95,181.88,3.05]
[1755606020843,4.66101038,181.94,181.88,3.05]
[1755606021043,4.66101038,181.93,181.88,3.05]
[1755606021243,4.66101038,181.92,181.88,3.05]
[1755606021446,4.66101038,181.91,181.88,3.05]
[1755606021647,3.61885581,181.96,181.88,3.05]
[1755606021948,7.3826749,181.95,181.88,3.05]
[1755606022248,4.65920025,181.94,181.88,3.05]
[1755606022449,4.65920025,181.93,181.88,3.05]
[1755606022749,4.65920025,181.92,181.88,3.05]
[1755606022944,4.65920025,181.91,181.88,3.05]
[1755606023145,3.61885581,181.96,181.88,3.05]
[1755606023347,7.37817015,181.95,181.88,3.05]
[1755606023542,4.65604966,181.94,181.88,3.05]
[1755606023845,3.61885581,181.96,181.89,3.09]
[1755606023846,4.65604966,181.93,181.89,3.09]
[1755606024048,4.65604966,181.92,181.89,3.09]
[1755606024246,4.65604966,181.91,181.89,3.09]
[1755606024447,3.61885581,181.96,181.89,3.09]
[1755606024644,7.37606024,181.95,181.89,3.09]
[1755606024844,3.61885581,181.96,181.89,3.09]
[1755606025144,7.37608916,181.95,181.89,3.09]
[1755606025346,4.65473644,181.94,181.89,3.09]
[1755606025541,4.65473644,181.93,181.89,3.09]
[1755606025742,4.65381945,181.92,181.89,3.09]
[1755606025937,4.65381945,181.91,181.89,3.09]
[1755606026146,3.61885581,181.96,181.87,3.09]
[1755606026350,4.65344296,181.95,181.87,3.09]
[1755606026550,4.65344296,181.94,181.87,3.09]
[1755606026739,4.65344296,181.93,181.87,3.09]
[1755606026943,4.65344296,181.92,181.87,3.09]
[1755606027145,3.61885581,181.96,181.87,3.09]
[1755606027450,4.65321617,181.95,181.87,3.09]
[1755606027744,3.61885581,181.99,181.87,3.09]
[1755606027951,4.65412866,181.98,181.91,3.09]
[1755606028155,4.65412866,181.97,181.91,3.09]
[1755606028351,9.59615021,182.04,181.93,3.09]
[1755606028556,7.37616125,182.03,181.93,3.09]
[1755606028749,7.37616125,182.02,181.93,3.09]
[1755606029050,4.65468773,182.01,181.93,3.09]
[1755606029264,4.65468773,182.0,181.93,3.09]
[1755606029441,4.65468773,181.99,181.93,3.09]
[1755606029644,3.61885581,182.04,181.93,3.09]
[1755606029844,7.37704957,182.03,181.93,3.09]
[1755606030047,4.65521973,182.02,181.93,3.09]
[1755606030245,4.65521973,182.01,181.93,3.09]
[1755606030444,4.65521973,182.0,181.93,3.09]
[1755606030641,3.61885581,182.04,181.93,3.09]
[1755606030847,4.65477648,182.03,181.93,3.09]
[1755606031048,4.65477648,182.02,181.96,3.09]
[1755606031250,4.65477648,182.01,181.96,3.09]
[1755606031449,3.61885581,182.04,181.96,3.09]
[1755606031644,4.65424904,182.03,181.97,3.09]
[1755606031849,134.0,182.06,181.97,3.09]
[1755606032053,4.65471928,182.05,181.97,3.09]
[1755606032259,4.65471928,182.04,181.97,3.09]
[1755606032558,134.0,182.06,182.0,3.09]
[1755606032756,4.6527917,182.05,182.0,3.09]
[1755606032946,369.36,182.17,182.0,3.09]
[1755606032947,3.61885581,182.13,182.0,3.09]
[1755606033153,4.65486162,182.12,182.04,3.09]
[1755606033355,4.65486162,182.11,182.04,3.09]
[1755606033559,4.65486162,182.1,182.04,3.09]
[1755606033856,3.61885581,182.13,182.04,3.09]
[1755606034159,4.65108464,182.12,182.04,3.09]
[1755606034458,4.65108464,182.11,182.04,3.09]
[1755606034658,3.61885581,182.13,182.04,3.09]
[1755606034864,4.36100076,182.12,182.04,3.09]
[1755606035051,3.61885581,182.13,182.04,3.09]
[1755606036162,3.61885581,182.16,182.04,3.09]
[1755606036351,4.35493029,182.15,182.04,3.09]
[1755606036552,4.35493029,182.14,182.04,3.09]
[1755606036768,4.35493029,182.13,182.04,3.09]
[1755606036957,3.61885581,182.16,182.04,3.09]
[1755606037149,4.35493029,182.15,182.04,3.09]
[1755606037354,4.35493029,182.14,182.04,3.09]
[1755606037554,3.61885581,182.16,182.04,6.70885581]
[1755606037755,3.61885581,182.16,182.05,3.09]
[1755606038660,3.61885581,182.16,182.06,3.09]
[1755606043560,3.61885581,182.13,182.06,3.09]
[1755606044761,3.61885581,182.13,182.0,3.09]
[1755606045063,3.61885581,182.1,182.0,3.09]
[1755606045262,137.51885581,182.1,182.0,3.09]
[1755606057973,133.9,182.1,182.0,3.09]
[1755606059374,133.9,182.1,182.02,2.98]
[1755606060378,3.61885581,182.08,181.98,2.98]
[1755606063982,3.61885581,182.05,181.98,2.98]
[1755606067083,3.61885581,182.08,181.98,2.98]
[1755606067679,3.61885581,182.08,181.96,2.98]
[1755606068788,3.61885581,182.11,181.99,2.98]
[1755606069288,3.61885581,182.11,182.0,5.4926]
[1755606069475,4.29080935,182.1,182.01,2.98]
[1755606069677,3.61885581,182.11,182.01,2.98]
[1755606069880,4.29038443,182.1,182.01,2.98]
[1755606070087,3.61885581,182.11,182.01,2.98]
[1755606070277,4.29342697,182.1,182.01,2.98]
[1755606070481,4.29342697,182.09,182.01,2.98]
[1755606070679,3.61885581,182.11,182.01,2.98]
[1755606070891,4.29400571,182.1,182.01,2.98]
[1755606071095,4.29400571,182.09,182.01,2.98]
[1755606071389,3.61885581,182.11,182.01,2.98]
[1755606071585,4.29787012,182.1,182.01,2.98]
[1755606071790,4.29787012,182.09,182.01,2.98]
[1755606071993,3.61885581,182.11,182.01,2.98]